Cogmind - Beta 16.1 @@@ ROGUE MODE // 2026.03.18 @ 10:02:46 Player: ash Result: Destroyed by Piercing Trap Performance ------------- Evolutions (0) 0 Regions Visited (2) 400 Robots Destroyed (29) 145 Value Destroyed (951) 951 Prototype IDs (2) 40 Alien Tech Used (0) 0 Bonus (0) 0 TOTAL SCORE: 1536 Bonus ------- None Cogmind --------- Core Integrity 0/250 Matter 233/300 Energy 98/100 System Corruption 0% Temperature Cool (0) Movement Rolling (160) Ox5 Location -10/Subcaves Parts ------- > --- POWER (1) -------- (None) > --- PROPULSION (2) --- Subdweller Monowheel Subdweller Monowheel > --- UTILITY (2) ------ Humpback > --- WEAPON (2) ------- Barrage Gun Slug Cannon > --- INVENTORY (35) --- Ion Engine Subdweller Power Source Subdweller Monowheel Subdweller Monowheel Makeshift Flight Unit Large Matter Pod (150) Subdweller Optics Scrap Shield Makeshift System Shield Medium Laser Subdweller Laser Subdweller Beam Cannon Subdweller Beam Cannon Light Assault Rifle Battle Rifle Battle Cannon Subdweller Shrapnel Launcher Multitool Peak State ------------ > --- POWER ------------ Light Nuclear Core > --- PROPULSION ------- Subdweller Monowheel Subdweller Monowheel > --- UTILITY ---------- Humpback > --- WEAPON ----------- Makeshift Shrapnel Gun Slug Cannon > --- INVENTORY -------- Ion Engine Subdweller Power Source Makeshift Flight Unit Large Matter Pod Subdweller Optics Makeshift System Shield Medium Laser Subdweller Laser Subdweller Beam Cannon Subdweller Beam Cannon Light Assault Rifle Battle Rifle Barrage Gun Battle Cannon Subdweller Shrapnel Launcher Multitool [Rating: 20] Favorites ----------- Power Ion Engine Engine Ion Engine Power Core Light Nuclear Core Propulsion Light Treads Treads Light Treads Wheel Subdweller Monowheel Utility Targeting Computer Storage Large Storage Unit Processor Targeting Computer Weapon Medium Laser Energy Gun Medium Laser Energy Cannon Subdweller Beam Cannon Ballistic Gun Makeshift Shrapnel Gun Ballistic Cannon Slug Cannon Launcher Subdweller Shrapnel Launcher Build | -11 -10 -10 ------- Run | Yrd Mat Sub Slots Evolved . | . . . Power . | . . . Propulsion . | . . . Utility . | . . . Weapon . | . . . Parts Attached 31 | 6 4 21 Power 4 | 1 . 3 Engine 3 | 1 . 2 Core 1 | . . 1 Reactor . | . . . Propulsion 11 | 2 . 9 Treads 3 | 2 . 1 Leg . | . . . Wheel 8 | . . 8 Hover . | . . . Flight . | . . . Utility 5 | 1 3 1 Device . | . . . Storage 3 | 1 1 1 Processor 2 | . 2 . Hackware . | . . . Protection . | . . . Artifact . | . . . Weapon 11 | 2 1 8 Energy Gun 3 | 1 . 2 Energy Cannon 1 | . . 1 Ballistic Gun 5 | 1 1 3 Ballistic Cannon 1 | . . 1 Launcher 1 | . . 1 Special Weapon . | . . . Impact Weapon . | . . . Slashing Weapon . | . . . Piercing Weapon . | . . . Special Melee Weapon . | . . . Unidentified Prototypes . | . . . Parts Lost 11 | . 1 10 Power 1 | . . 1 Propulsion 7 | . . 7 Utility . | . . . Weapon 3 | . 1 2 Highest Loss Streak 3 | . 1 3 To Critical Strikes 1 | . . 1 Average Backups 11 | 2 7 13 Power 2 | . 1 2 Propulsion 1 | 1 2 1 Utility 2 | . . 2 Weapon 5 | . 2 7 Tool/Special . | . . . Unused Backups 22 | 2 2 18 Power 2 | . . 2 Propulsion 6 | 2 1 3 Utility 5 | . . 5 Weapon 8 | . 1 7 Tool/Special 1 | . . 1 Average Slot Usage (%) 89 | . 97 86 Engine 6 | . 14 3 Core 4 | . . 6 Treads 12 | . 28 5 Wheel 14 | . . 20 Storage 14 | . 14 14 Processor 7 | . 11 6 Energy Gun 8 | . 14 6 Energy Cannon 2 | . . 3 Ballistic Gun 13 | . 14 13 Ballistic Cannon 2 | . . 3 Peak Build Rating 20 | 6 9 20 Average Rating 12 | 4 7 14 On Entrance 4 | . 6 8 Avg Prop Armor Cover (%) 13 | . . 13 Naked Turns . | . . . Heaviest Build 215 | 13 29 215 Greatest Support 40 | 40 40 40 Greatest Overweight (x) 69 | 3 . 69 Average Overweight (x) 2 | . . 2 Largest Inventory Capacity 35 | 8 15 35 Average Capacity 20 | 7 11 25 Most Carried 19 | 5 9 19 Average Carried 11 | 2 7 14 Final Capacity 35 | 8 15 35 Final Carried 19 | 4 9 19 Class Distribution -------------------- 64% | Mutant 35% | Hauler-Mutant Dominant Class ---------------- Mutant | -10/Materials Hauler-Mutant | -10/Subcaves Resources | -11 -10 -10 ----------- Run | Yrd Mat Sub Matter Collected 946 | 237 274 435 Remotely . | . . . Salvage Created 1156 | . 567 589 Parts 59 | . 29 30 Haulers Intercepted 2 | . 2 . Recyclers Shooed 1 | . 1 . Parts Field Recycled . | . . . Retrieved Matter . | . . . Parts Self-Destructed 19 | . . 19 Prevented . | . . . Parts Restored . | . . . Kills | -11 -10 -10 ------- Run | Yrd Mat Sub Combat Hostiles Destroyed 25 | . 9 16 Guns 18 | . 9 9 Cannons 5 | . . 5 AOE 2 | . . 2 Classes Destroyed 6 | . 5 1 Hauler 2 | . 2 . Recycler 1 | . 1 . Watcher 1 | . 1 . Swarmer 2 | . 2 . Grunt 9 | . 7 2 Subdweller 14 | . . 14 Best Kill Streak 3 | . 3 2 Combat Bots Only 3 | . 3 2 Max Kills in Single Turn 2 | . 1 2 Gunslinging . | . . . Exploded 2 | . . 2 Melee . | . . . Uniques/NPCs Destroyed . | . . . Combat | -11 -10 -10 -------- Run | Yrd Mat Sub Hostile Shots Fired 106 | . 35 71 Missed 23 | . 6 17 Hits 83 | . 29 54 Projectile 83 | . 29 54 AOE 1 | . . 1 Critical Strikes 2 | . . 2 Damage Taken 1635 | . 339 1296 Core 251 | . 31 220 Absorbed by Shields . | . . . Core Remaining (%) 100 | 100 . . Volleys Fired 84 | . 37 47 Largest 2 | . 2 2 Hottest 104 | . 70 104 Shots Fired 167 | . 74 93 Gun 145 | . 74 71 Cannon 19 | . . 19 Launcher 3 | . . 3 Special . | . . . Kinetic 99 | . 37 62 Thermal 68 | . 37 31 Explosive . | . . . Electromagnetic . | . . . Robot Hit Streak 18 | . 10 18 Robot Miss Streak 3 | . 2 3 Penetration Max . | . . . Secondary Targets 1 | . . 1 Max Gunslinging Chain 1 | . . 1 Shots Hit Robots 124 | . 52 72 Core Hits 57 | . 26 31 Critical Kills 1 | . . 1 Critical Parts Destroyed . | . . . Critical Strikes 12 | . 5 7 Burn 10 | . 5 5 Destroy 2 | . . 2 Melee Attacks . | . . . Impact . | . . . Slashing . | . . . Piercing . | . . . Sneak Attacks . | . . . Combat Hostiles . | . . . Follow-up Attacks . | . . . Damage Inflicted 2103 | . 638 1465 Guns 1604 | . 636 968 Cannons 268 | . . 268 Explosions 229 | . . 229 Melee . | . . . Ramming 2 | . 2 . Kinetic 1292 | . 231 1061 Thermal 809 | . 405 404 Explosive . | . . . Electromagnetic . | . . . Impact . | . . . Slashing . | . . . Piercing . | . . . Highest Corruption . | . . . Average Corruption . | . . . Corruption Purged . | . . . Corruption Blocked . | . . . Overload Shots . | . . . Overflow Damage . | . . . Projectiles . | . . . Explosions . | . . . Melee . | . . . Knockbacks 1 | . . 1 Impact . | . . . Kinetic 1 | . . 1 Secondary . | . . . Self-Inflicted Damage 31 | . . 31 Shots 1 | . . 1 Rammed 3 | . 3 . Targets Rammed 3 | . 3 . Kicked . | . . . Crushed . | . . . Highest Temperature 167 | . 167 13 Average Temperature 43 | . 43 7 Received Heat Transfer 360 | . 165 195 Siege Activations . | . . . Martial Activations . | . . . Shielding Activations . | . . . Robots Disrupted . | . . . Combat Hostiles . | . . . Robots Corrupted . | . . . Combat Hostiles . | . . . Parts Fried . | . . . Impact Corruptions . | . . . Robots Melted . | . . . Combat Hostiles . | . . . Parts Melted 3 | . 1 2 Heat Transferred 2886 | . 1554 1332 Parts Sabotaged . | . . . Parts Stolen . | . . . Parts Stripped . | . . . Power Chain Reactions . | . . . Alert | -11 -10 -10 ------- Run | Yrd Mat Sub Maximum Alert Level . | . . . Low Security (%) 100 | 100 100 . Level 1 . | . . . Level 2 . | . . . Level 3 . | . . . Level 4 . | . . . Level 5 . | . . . High Security . | . . . Max Security . | . . . Peak Influence 75 | . 75 . Initial . | . . . Average 16 | . 18 . Influence Increases 361 | . 311 50 Destroy 0b10 Robot/C 220 | . 180 40 Destroy 0b10 Robot/NC 20 | . 20 . Destroy Leader 66 | . 56 10 Successful Hack 25 | . 25 . Lose Combat Pursuer 30 | . 30 . Influence Decreases 361 | . 242 119 Entered New Map 34 | . . 34 Time Decay 297 | . 232 65 Lost Part 30 | . 10 20 Squads Dispatched 3 | . 3 . Investigation . | . . . Extermination . | . . . Reinforcement 3 | . 3 . Assault . | . . . Garrison . | . . . Intercept . | . . . Searches Triggered . | . . . Construction Impeded . | . . . Haulers Reinforced . | . . . Active Scanning Responses . | . . . Cargo Convoy Interrupts . | . . . Stealth | -11 -10 -10 --------- Run | Yrd Mat Sub Distress Signals 2 | . 2 . Communications Jammed . | . . . Distress Signals . | . . . Times Spotted 39 | . 21 18 Peak Tracking Total 4 | . 4 2 Tactical Retreats 2 | . 2 . Traps | -11 -10 -10 ------- Run | Yrd Mat Sub Traps Triggered 3 | . . 3 Indirectly . | . . . Trap Hack Attempts . | . . . Triggered . | . . . Disarmed . | . . . Reprogrammed . | . . . Reused 1 | . . 1 Traps Extracted . | . . . Installed 3 | . . 3 Triggered . | . . . Most Traps Carried 1 | . . 1 Machines | -11 -10 -10 ---------- Run | Yrd Mat Sub Machines Disabled . | . . . Max in Single Turn . | . . . Machines Repaired . | . . . Machines Dismantled . | . . . Machines Sabotaged . | . . . Overloaded Fab Kills . | . . . Hacking | -11 -10 -10 --------- Run | Yrd Mat Sub Machines Accessed 5 | . 5 . Terminals 5 | . 5 . Fabricators . | . . . Repair Stations . | . . . Recycling Units . | . . . Scanalyzers . | . . . Garrison Access . | . . . Total Hacks 13 | . 13 . Successful 8 | . 8 . Failed 5 | . 5 . Catastrophic 1 | . 1 . Database Lockouts . | . . . Manual 9 | . 9 . Terminals 13 | . 13 . Fabricators . | . . . Repair Stations . | . . . Recycling Units . | . . . Scanalyzers . | . . . Garrison Access . | . . . Terminal Hacks 4 | . 4 . Prototype ID Bank 1 | . 1 . Emergency Access Points 1 | . 1 . Locate Traps 1 | . 1 . Zone Layout 1 | . 1 . Fabricator Hacks . | . . . Repair Station Hacks . | . . . Recycling Unit Hacks . | . . . Scanalyzer . | . . . Garrison Access Hacks . | . . . Unauthorized Hacks 4 | . 4 . Terminals 4 | . 4 . Botnet 4 | . 4 . Fabricators . | . . . Repair Stations . | . . . Recycling Units . | . . . Scanalyzers . | . . . Garrison Access . | . . . Data Cores Recovered . | . . . Used . | . . . Hacking Detections 5 | . 5 . Full Trace Events . | . . . Feedback Events . | . . . Feedback Blocked . | . . . Robot Schematics Acquired . | . . . Robots Built . | . . . Authchips . | . . . Time . | . . . Total Robot Build Rating . | . . . Part Schematics Acquired . | . . . Parts Built . | . . . Authchips . | . . . Time . | . . . Total Part Build Rating . | . . . Part Studies Acquired . | . . . Parts Repaired . | . . . Time . | . . . Parts Recycled . | . . . Recycled Matter . | . . . Retrieved Matter . | . . . Retrieved Components . | . . . Parts Scanalyzed . | . . . Part Schematics Acquired . | . . . Parts Damaged . | . . . Bothacking | -11 -10 -10 ------------ Run | Yrd Mat Sub Used RIF Installer . | . . . Robots Hacked . | . . . Non-combat . | . . . Combat . | . . . Robot Hacks Applied . | . . . Relay Couplers Released . | . . . Fabnet Peak Effective % . | . . . Robots Rewired . | . . . Allies Hacked . | . . . Hacks Repelled . | . . . Allies | -11 -10 -10 -------- Run | Yrd Mat Sub Total Allies . | . . . Largest Group . | . . . Highest-Rated Group . | . . . Highest-Rated Ally . | . . . Total Orders . | . . . Ally Attacks . | . . . Total Damage . | . . . Kills . | . . . Allies Corrupted . | . . . Allies Melted . | . . . Intel | -11 -10 -10 ------- Run | Yrd Mat Sub Active Infowar (turns) 186 | . 186 . Optics 186 | . 186 . Robot Analysis Total . | . . . Derelict Logs Recovered 1 | . . 1 Drone Launches . | . . . Drone Recoveries . | . . . Exploration | -11 -10 -10 ------------- Run | Yrd Mat Sub Turns Passed 2691 | 94 810 1787 Spaces Moved 1474 | 50 397 1027 Core 7 | 6 . 1 Treads 499 | 44 397 58 Legs . | . . . Wheels 968 | . . 968 Hover . | . . . Flight . | . . . Fastest Speed 50 | 50 160 110 Average Speed 148 | 157 160 143 Slowest Speed 3500 | 200 160 3500 Overloaded Moves . | . . . Propulsion Burnouts . | . . . Robots Hopped . | . . . Potential Cave-ins . | . . . Cave-ins Triggered . | . . . Exploration Rate (%) 47 | 4 70 69 Regions Visited 2 Branch Regions 1 Pre-discovered Areas . | . . . Known Exits Taken . | . . . Unknown Exits Taken 2 | 1 1 . Scrap Searched 10 | . . 10 Spaces Dug . | . . . Terrain Destroyed 54 | . . 54 Melee . | . . . Projectile 6 | . . 6 AOE 48 | . . 48 Terrain Rammed . | . . . Walls Destroyed . | . . . Machines Disabled . | . . . Actions | -11 -10 -10 --------- Run | Yrd Mat Sub Total 1806 | 64 501 1241 Wait 142 | . 49 93 Move 1472 | 49 396 1027 Hop . | . . . Pick Up 47 | 7 8 32 Fast Attach 12 | 5 2 5 Attach 9 | 1 1 7 Detach 3 | . 1 2 Swap 13 | . 1 12 Drop 17 | 2 3 12 Fire 84 | . 37 47 Melee . | . . . Ram . | . . . Kick . | . . . Crush 3 | . 3 . Escape Stasis . | . . . Rewire . | . . . Trap 4 | . . 4 Miscellaneous . | . . . Route ------- -11/Scrapyard -10/Materials (discovered 4 exits: [*Mat] / [*Min x2] / [*Sub]) -10/Subcaves (discovered 1 exit: *Mat) History --------- Turn | Location | Event 9 | -11/Scrapyard | Discovered new exit (range 15) 95 | -11/Scrapyard | Entered Materials 331 | -10/Materials | Build established: Mutant 457 | -10/Materials | Discovered new exit (range 15) 680 | -10/Materials | Discovered new exit (range 7) 740 | -10/Materials | Discovered new exit (range 12) 895 | -10/Materials | Discovered new exit (range 6) 905 | -10/Materials | Entered Subcaves 909 | -10/Subcaves | Identified exit to Materials 1017 | -10/Subcaves | Shifting Twisted Machinery released Mak. System Shield 1261 | -10/Subcaves | Shifting Twisted Machinery released Sub. Laser 1275 | -10/Subcaves | Shifting Twisted Machinery released Barrage Gun 1320 | -10/Subcaves | A swath of the cavern ceiling suddenly collapsed 1436 | -10/Subcaves | Core integrity fell below 50% 1952 | -10/Subcaves | Core integrity fell below 20% 2024 | -10/Subcaves | Build established: Hauler-Mutant 2075 | -10/Subcaves | A swath of the cavern ceiling suddenly collapsed 2134 | -10/Subcaves | Shifting Twisted Machinery released Sub. Optics 2176 | -10/Subcaves | Shifting Twisted Machinery released Mak. Hammer 2294 | -10/Subcaves | Lost 3 parts (1p2n) 2692 | -10/Subcaves | Destroyed by Piercing Trap Last Messages --------------- 02334_ Acquired 5 matter. 02337_ Acquired Sub. Monowheel. 02338_ Acquired 37 matter. 02432_ Sub. Monowheel shoots sparks and powers down. 02503_ Mak. Shrapnel Gun destroyed. 02511_ 1K-9FX(R) knocked back. 02514_ 5J-T08(R) destroyed. 02517_ 1K-9FX(R) suffers critical hit (Destroy). 02522_ 1K-9FX(R) destroyed. 02529_ Acquired Sub. Monowheel. 02530_ Acquired 36 matter. 02531_ Acquired 13 matter. 02534_ Acquired 1 matter. 02549_ Acquired 31 matter. 02678_ Triggered Piercing Trap. 02678_ Spikes shoot up from the floor. 02678_ Critical hit (Impale). 02692_ Triggered Piercing Trap. 02692_ Spikes shoot up from the floor. 02692_ Critical hit (Impale). Map ----- +----------------------------------------------------+ | ?????????????????????????????????????????????????? | | ?????????????????????????????????????????????????? | | ?????????????????????????????????????????????????? | | ?????????????????????????????????????????????????? | | ?????????????????????????????????????????????????? | | ?????????????????????????????????????????????????? | | ?????????????????????????????????????????????????? | | ??????###????????????????????????????????????????? | | ?????# #????????????????????????????????????????? | | ##### #????????????????????????????????????????? | | # #?????????????????????????????????????????? | | #??????????????????????????????????????????? | | ##?????????????????????????????????????????? | | ####??????????????????????????????????????? | | #??????????????????????????????????????? | | ###??????????????????????????????????????? | | #####????????????????????????????????????????? | | ##????????????????????????????????????????????? | | ##?????????????????????????????????????????????? | | ###????????????????????????????????????????????? | | ##???????????????????????????????????????????? | | #?????????????###???????????????????????????? | | #??????######## ##???##?????????????????????? | | # # #?????## ## ^ #### #?????????????????????? | | ############ ## #?????????????????????? | | ##????# # ^ @ #?????????????????????? | | ##???# " # ^ ###?????????????????????? | | #???## ""#"" # #???????????????????????? | | ###????# """"" #???????????????????????? | | #??????# #"""#" ## #??????????????????????? | | ???????# """"###### #??????????????????????? | | ##?????# ##""###???## #??????????????????????? | | #????## #""""#????# #??????????????????????? | | #????# #??""#????# #?????????????????????? | | #????## #?"" ##???#######?????????????????????? | | #?????## ## """#???????????????????????????????? | | ##??????## """#???????????????????????????????? | | ####?###?# ""##???????????????????????????????? | | ### ### ""##????????????????????????????????? | | ## #?????????????????????????????????? | | #?????????????????????????????????? | | ""#?????????????????????????????????? | | """ #??#??????????????????????????????? | | ###"##### ##?????????????????????????????? | | # "#####??# #?????????????????????????????? | | # """ #### #?????????????????????????????? | | # #?????????????????????????????? | | #?????????????????????????????? | | #?????????????????????????????? | | #??????????????????????????????? | +----------------------------------------------------+ Best States ------------- Heat Dissipation 25 Energy Generation 15 Energy Capacity 250 Matter Stores 300 Matter Capacity 300 Sight Range 18 Terrain Scan Density 10 Evasion (%) 40 Targeting Accuracy 5 Recoil Reduction 2 Item Schematics ----------------- None Robot Schematics ------------------ None Fabricated ------------ Nothing Repaired ---------- Nothing Studied --------- None Alien Tech Used ----------------- None Achievements -------------- Tank Challenges ------------ None Game ------ Seed DoorWarlordCutter Manual? 0 Play Time 00:29:01 Cumulative 73.0 hours Start 2026.03.18 @ 09:35:28 End 2026.03.18 @ 10:02:46 Sessions 1 Manual Loads 0 Difficulty Rogue Special Mode None Game No. 66 Rogue 21 Adventurer 45 Explorer 0 Win Type - Total 3 Types 2/0/0/1/0/0/0/0/0/0 Lore% 44 Gallery% 45 Achievement% 28 Wizard Run 0 Options --------- Layout 0 ASCII 0 Keyboard 1 Movement Numpad Keybinds 0 Fullscreen 1 Font 24/Smallcaps Map View 76x50 Zoom Use 0% Tactical HUD 1 Map Filters NONE Filters NONE Steam 1 RUN: 7b948c76-38af-47ca-8b8a-85d0759d1274